[Event "Superbet Blitz Poland 2023"]
[Site "Warsaw"]
[Date "2023.05.24"]
[Round "3"]
[White "Rapport, Richard"]
[Black "So, Wesley"]
[Result "1/2-1/2"]
[ECO "D00"]
[WhiteElo "2745"]
[BlackElo "2760"]
[Annotator "TA"]
[PlyCount "85"]
[EventDate "2023.05.24"]
[EventType "tourn"]
[EventCountry "POL"]
[SourceTitle "playchess.com"]
[Source "ChessBase"]
[SourceQuality "1"]
[TimeControl "300+2"]

{[%evp 9,85,-5,16,0,4,13,20,0,0,0,51,18,39,39,31,16,12,12,6,0,0,0,0,0,0,-13,0,-32,21,-37,-41,-41,60,70,81,41,40,0,0,0,0,0,0,0,216,231,220,0,0,-161,1040,0,0,0,0,0,0,-29973,-29974,-29979,-29977,-29979,-29978,-29991,-10318,-11468,-5583,-6223,0,-9409,-10013,-6183,-5281,-10937,0,-4875,-1371,-4698]} 1. d4 {[%emt 0:00:02]} Nf6 {[%emt 0:00:03]} 2. Bg5 {[%emt 0:00:02]} d5 {[%emt 0:00:02]} 3. e3 {[%emt 0:00:01]} c5 {[%emt 0:00:01]} 4. Bxf6 {[%emt 0:00:02]} gxf6 {[%emt 0:00:01]} 5. Bb5+ {[%emt 0:00:02]} Nc6 {[%emt 0:00:04]} 6. Ne2 {[%emt 0:00:02] [#] D00: 1 d4 d5: Unusual lines.} a6 $146 {[%emt 0:00:22]} ({Predecessor:} 6... e5 7. Nbc3 Be6 8. O-O a6 9. Bxc6+ bxc6 10. f4 Bd6 11. dxe5 fxe5 12. f5 Bd7 {0-1 Moradiabadi,E (2586)-Bacrot,E (2720) Wch Blitz 8th 2014 (1)}) 7. Bxc6+ {[%emt 0:00:03]} bxc6 {[%emt 0:00:01]} 8. c4 {[%emt 0:00:12] The position is equal.} (8. dxc5 $5 Rb8 9. Nd2 $11) 8... cxd4 {[%emt 0:00:10]} 9. Nxd4 {[%emt 0:00:15]} Bb7 {[%emt 0:00:18]} (9... Rg8 $11) 10. O-O {[%emt 0:00:12]} e6 {[%emt 0:00:03]} 11. cxd5 {[%emt 0:00:15]} cxd5 {[%emt 0:00:10]} 12. Qh5 {[%emt 0:00:06]} Qe7 {[%emt 0:00:13]} 13. Nc3 {[%emt 0:00:13][%cal Bb1c3,Bc3e2,Be2d4][%mdl 32]} Bg7 {[%emt 0:00:01]} 14. f4 {[%emt 0:00:08]} f5 {[%emt 0:00:03]} 15. Rad1 {[%emt 0:00:20]} Rc8 {[%emt 0:00:05]} 16. Rf3 {[%emt 0:00:29]} Bf6 {[%emt 0:00:24]} 17. Rg3 {[%emt 0:00:14]} Rc4 {[%emt 0:00:20]} 18. Nce2 {[%emt 0:00:08]} a5 {[%emt 0:00:20]} (18... h6 $15) 19. b3 {[%emt 0:00:12]} ({Better is} 19. Qh6 $1 $11) 19... Rc5 $15 {[%emt 0:00:03]} 20. Nf3 {[%emt 0:00:03]} Rc2 {[%emt 0:00:16]} (20... h6 $15) 21. Ned4 $14 {[%emt 0:00:02]} Rxa2 {[%emt 0:00:01]} 22. Ne5 {[%emt 0:00:12] Threatens to win with Rc1.} Rf8 {[%emt 0:00:47]} 23. h3 {[%emt 0:00:13]} Bh4 $1 $36 {[%emt 0:00:10][%mdl 2048] Black has some pressure.} 24. Rg7 {[%emt 0:01:14] The board is on fire.} Bf2+ {[%emt 0:00:02]} 25. Kh1 {[%emt 0:00:01] Strongly threatening Nb5.} Bxe3 {[%emt 0:00:01]} 26. Nb5 {[%emt 0:00:08]} Bc5 $2 {[%emt 0:00:57]} (26... Bxf4 $2 27. Nd6+ Kd8 28. Nexf7+ (28. Nxb7+ Kc8 $16) 28... Kc7 29. Qxh7 $18) (26... d4 $1 $11 {and Black is okay.} 27. Nxf7 {[%mdl 64] Decoy} Rxf7 28. Nd6+ Kd7 29. Qxf7 (29. Nxf7 Kc7 $11) 29... Qxf7 30. Rxf7+ (30. Nxf7 Bd5 $17) 30... Kxd6 31. Rxb7 Kc5) 27. Rc1 $18 {[%emt 0:00:10][%cal Og7f7] Hoping for Rxf7!} d4 {[%emt 0:00:09][%cal Od4d3] [#]} 28. Nd3 $2 {[%emt 0:00:34]} ({White must play} 28. Nxf7 $1 $18 {White wants to mate with Nfd6+.} Rxf7 29. Rxc5) 28... Bd6 {[%emt 0:00:12] ...Bb8 would be deadly.} (28... Bb6 $5 29. Ne5 $8 Bc5 $18) 29. Qxh7 $2 {[%emt 0:00:07]} (29. Ne5 $11 Bb8 30. Nxf7 Rxf7 31. Rg8+ Qf8 32. Rxf8+ Kxf8 33. Qh6+ (33. Nxd4 Rxg2 $11) 33... Rg7 34. Qf6+ (34. Qxe6 Bxg2+ 35. Kg1 Be4+ 36. Kf1 Bd3+) (34. Nxd4 Raxg2 35. Qf6+ Kg8 $19) 34... Kg8 35. Qxe6+ (35. Qxd4 $2 Raxg2 36. Qd8+ Kf7 $19) (35. Qd8+ Kf7 $11) 35... Kh8 36. Rc8+ (36. Qxf5 $2 Bxg2+ 37. Kg1 Bxh3+ $19) 36... Bxc8 37. Qxc8+ Rg8 38. Qxf5 Raxg2 39. Qf6+ (39. Nxd4 $2 Rg1+ 40. Kh2 R8g2#) 39... R8g7 40. Qd8+ (40. Qxd4 Bxf4 41. Qd8+ Rg8 $11) 40... Rg8 41. Qxd4+ (41. Qxa5 $2 Rg1+ 42. Kh2 Bxf4#) 41... R8g7 42. h4) 29... Be4 $4 {[%emt 0:00:09][%mdl 8192] This pair of bishops is nice.} (29... Bb8 $19 30. Ne5 d3 31. Nxf7 Rxf7 32. Qh8+ Qf8) 30. Ne5 $2 {[%emt 0:00:06]} ({Only move:} 30. Nxd6+ $18 Qxd6 31. Rc8+ Kd7 32. Rxf8 (32. Rxf7+ $2 Kxc8 33. Rxf8+ Qxf8 $19) 32... Bxg2+ 33. Kg1 Qxf8 34. Rxf7+ Qxf7 35. Qxf7+ Kd6 36. Ne5) 30... Bxe5 $1 $11 {[%emt 0:00:14]} 31. fxe5 {[%emt 0:00:04]} Rxg2 $1 {[%emt 0:00:13][%mdl 64] [#] Decoy} 32. Rxg2 (32. Rc8+ Kd7 33. Rc7+ (33. Rxg2 $2 Rxc8 34. Kh2 Bxg2 $19) 33... Kd8 34. Rxg2 Qg5 $17) 32... Bxg2+ 33. Kxg2 $2 {[%emt 0:00:13][%mdl 8192]} (33. Kh2 $11 Qg5 34. Rc8+ Ke7 35. Rxf8 Kxf8 36. Qh8+ (36. Nxd4 $2 {is the wrong capture.} Bd5 $19) (36. Nd6 Qf4+ 37. Kxg2 Qd2+ 38. Kh1 Qc1+ 39. Kh2 Qd2+ 40. Kh1 Qc1+ 41. Kh2 Qd2+ 42. Kh1 $11) 36... Ke7 37. Qf6+ (37. Qb8 Qf4+ 38. Kxg2 Qe4+ 39. Kh2 Qe2+ 40. Kh1 Qe4+ 41. Kh2 Qe2+ 42. Kh1 Qe4+ 43. Kh2 $11) 37... Qxf6 38. exf6+ Kxf6 39. Kxg2) 33... Qg5+ {[%emt 0:00:00]} 34. Kf3 {[%emt 0:00:01]} Qxc1 {[%emt 0:00:00] KQR-KQN} 35. Nd6+ {[%emt 0:00:03]} Kd7 {[%emt 0:00:01]} 36. Qg7 {[%emt 0:00:02]} Qe3+ {[%emt 0:00:02]} (36... Qf1+ $142 37. Kg3 Qg1+ {[%mdl 64] Skewer} 38. Kf3 Qxg7 39. Nc4 Rg8 40. Ke2 Qg2+ 41. Kd1 d3 42. Nd2 Rc8 43. Nc4 Qe2+ 44. Kc1 Qc2#) 37. Kg2 $19 {[%emt 0:00:01]} Qe2+ {[%emt 0:00:08]} 38. Kg1 {[%emt 0:00:01]} Qe3+ {[%emt 0:00:03]} 39. Kg2 $1 {[%emt 0:00:01]} Rb8 {[%emt 0:00:07]} 40. Qxf7+ {[%emt 0:00:01]} Kc6 {[%emt 0:00:01] ( -> ...Qe2+)} 41. Qxe6 {[%emt 0:00:02]} Qg5+ $2 {[%emt 0:00:02]} (41... Qe2+ $19 42. Kg1 Qd1+ 43. Kf2 Qxb3 44. Qxb3 Rxb3 45. Nxf5 Kd5) 42. Kf1 $2 {[%emt 0:00:02][%mdl 8192]} (42. Kf3 $11 Qe3+ 43. Kg2 Qxb3 44. Qxb3 Rxb3 45. Nxf5) 42... Qc1+ {[%emt 0:00:03]} 43. Kg2 {[%emt 0:00:01][%mdl 32768] An exciting game.   Weighted Error Value: White=0.66/Black=0.75. An unexpected result.} 1/2-1/2

[Event "Superbet Blitz Poland 2023"]
[Site "Warsaw"]
[Date "2023.05.24"]
[Round "3"]
[White "Wojtaszek, Radoslaw"]
[Black "Shevchenko, Kirill"]
[Result "0-1"]
[ECO "A05"]
[WhiteElo "2670"]
[BlackElo "2684"]
[Annotator "TA"]
[PlyCount "66"]
[EventDate "2023.05.24"]
[EventType "tourn"]
[EventCountry "POL"]
[SourceTitle "playchess.com"]
[Source "ChessBase"]
[SourceQuality "1"]
[TimeControl "300+2"]

{[%evp 14,66,0,-6,-18,-10,-16,-24,11,11,45,20,30,31,42,31,66,78,91,97,150,8,31,29,229,77,62,-19,-15,-25,-16,-27,-21,-25,17,-18,-8,-8,0,-135,-22,-26,-13,-63,-54,-182,-78,-256,-211,-29985,-66,-5402,-5397,-29997,-29998]} 1. Nf3 {[%emt 0:00:01]} Nf6 {[%emt 0:00:02]} 2. g3 {[%emt 0:00:01]} g6 {[%emt 0:00:01]} 3. b3 {[%emt 0:00:01]} d5 {[%emt 0:00:07]} 4. Bb2 {[%emt 0:00:02]} c5 {[%emt 0:00:01]} 5. c4 {[%emt 0:00:07]} d4 {[%emt 0:00:01]} 6. b4 {[%emt 0:00:00]} Bg7 {[%emt 0:00:19]} 7. Bg2 {[%emt 0:00:04]} O-O {[%emt 0:00:02]} 8. O-O {[%emt 0:00:06]} Re8 {[%emt 0:00:06] A05: Réti Opening: 1 Nf3 Nf6.} 9. d3 {[%emt 0:00:09]} e5 {[%emt 0:00:04]} 10. bxc5 {[%emt 0:00:07]} Nc6 {[%emt 0:00:26] Black has an edge.} 11. Nbd2 {[%emt 0:00:06] [#]} e4 $5 $146 {[%emt 0:00:19][%mdl 8] An interesting novelty.} ({Predecessor:} 11... Nd7 12. Ne4 Bf8 13. Ba3 Qa5 14. Qc1 Kg7 15. Nd6 Re7 16. Rb1 a6 17. Ng5 Nxc5 {1-0 Artemiev,V (2704)-Robson,R (2673) Katara Bullet Final blitz 2021 (2.6)}) 12. dxe4 {[%emt 0:00:37]} Nxe4 {[%emt 0:00:02]} 13. Nxe4 {[%emt 0:00:02]} Rxe4 {[%emt 0:00:01]} 14. Nd2 {[%emt 0:00:13]} (14. Ng5 $5 {[%cal Rg5e4]} Re5 15. h4 $11) 14... Re8 {[%emt 0:00:06]} 15. Ne4 {[%emt 0:00:02]} Bg4 {[%emt 0:00:28]} 16. Re1 {[%emt 0:00:01]} Qd7 {[%emt 0:01:22]} (16... Be5 $142) 17. Qd2 {[%emt 0:00:34]} (17. Nd6 $16) 17... Re5 $11 {[%emt 0:00:18]} 18. e3 {[%emt 0:00:15][%cal Re3d4]} d3 {[%emt 0:00:15]} 19. Nd6 $2 {[%emt 0:00:21]} (19. Reb1 $18) 19... Rxc5 $16 {[%emt 0:00:11]} 20. Bxg7 {[%emt 0:00:02]} ({White should play} 20. Ne4 $1 $14 Rxc4 21. Bxg7 Kxg7 22. Qb2+ Kh6 23. Nf6 (23. Qf6 Qe7 $17)) 20... Qxd6 $11 {[%emt 0:00:01]} 21. Bb2 {[%emt 0:01:09]} (21. Bd4 Nxd4 22. exd4 Qxd4 $17) 21... Rxc4 {[%emt 0:00:15] ...Rc2 is the strong threat.} 22. Rac1 {[%emt 0:00:01] Dodges Rc2. White is weak on the light squares} Qb4 {[%emt 0:00:22]} 23. Bc3 {[%emt 0:00:11]} Qd6 {[%emt 0:00:00]} (23... Qc5 $5 {[%cal Ra8c8]}) 24. Ba1 {[%emt 0:00:06] This pair of bishops is nice.} (24. h3 $5 {[%cal Rh3g4]} Bf5 25. g4 $14) 24... Rxc1 {[%emt 0:00:27]} 25. Rxc1 {[%emt 0:00:02]} Rd8 {[%emt 0:00:01]} (25... f6 26. f3 Bd7 27. Rc3 $14) (25... Be2 {simplifies} 26. Bf1 Bxf1 27. Rxf1 f6) 26. Qc3 {[%emt 0:00:38] [#]} (26. Bxc6 $11 bxc6 27. Rc4) 26... f6 $1 {[%emt 0:00:02][%mdl 512] Active counter play!} 27. f3 $1 {[%emt 0:00:22]} Bf5 $36 {[%emt 0:00:11][%mdl 2048] Black has some pressure.} ({Of course not} 27... d2 28. Rd1 Bf5 29. g4 $14) (27... Bc8 $5 {[%cal Rd6e7]}) 28. Rd1 {[%emt 0:00:02]} (28. Qxf6 $2 {loses.} Qxf6 29. Bxf6 d2 $19) (28. e4 $11 d2 29. Rd1) 28... Ne5 $15 {[%emt 0:00:02]} 29. e4 {[%emt 0:00:09]} (29. g4 $15 Rc8 30. Qd4 Qxd4 31. exd4) 29... Rc8 {[%emt 0:00:02]} (29... Be6 $19 {Strongly threatening ...Qb6+.} 30. Qd2 Qa3 31. Bxe5 fxe5) 30. Qb2 {[%emt 0:00:06]} (30. Qd4 $17 Qxd4+ 31. Bxd4) 30... Rc2 {[%emt 0:00:07]} 31. Qxb7 {[%emt 0:00:06] [#]} (31. Qd4 $19 Qxd4+ 32. Bxd4) 31... Bh3 $2 {[%emt 0:00:00]} 32. Qb3+ $2 {[%emt 0:00:14][%mdl 8192]} (32. Qa8+ $15 Bc8 33. Qxa7) 32... Kg7 $19 {[%emt 0:00:05] ( -> ...Qc5+)} 33. Bxe5 {[%emt 0:00:01]} Qc5+ {[%emt 0:00:03] Beautiful play by Shevchenko!   Weighted Error Value: White=0.89/Black=0.46} 0-1

[Event "Superbet Blitz Poland 2023"]
[Site "Warsaw"]
[Date "2023.05.24"]
[Round "4"]
[White "So, Wesley"]
[Black "Giri, Anish"]
[Result "0-1"]
[ECO "B51"]
[WhiteElo "2760"]
[BlackElo "2768"]
[Annotator "TA"]
[PlyCount "64"]
[EventDate "2023.05.24"]
[EventType "tourn"]
[EventCountry "POL"]
[SourceTitle "playchess.com"]
[Source "ChessBase"]
[SourceQuality "1"]
[TimeControl "300+2"]

{[%evp 9,64,5,13,0,14,9,9,9,3,13,10,0,17,0,14,6,3,0,0,0,0,-45,-36,-60,0,-25,-25,-35,-12,-14,-12,-189,-173,-186,-181,-191,-194,-197,-201,-456,-448,-1069,-456,-2120,-2073,-1374,-261,-7092,-7117,-6647,-5314,-5314,-5306,-5273,-2722,-1611,-1812]} 1. e4 {[%emt 0:00:02]} c5 {[%emt 0:00:00]} 2. Nf3 {[%emt 0:00:02]} d6 {[%emt 0:00:01]} 3. Bb5+ {[%emt 0:00:01]} Nd7 {[%emt 0:00:00]} 4. d4 {[%emt 0:00:05]} cxd4 {[%emt 0:00:02]} 5. Qxd4 {[%emt 0:00:01]} a6 {[%emt 0:00:01]} 6. Be2 {[%emt 0:00:02] B51: Sicilian: Moscow Variation (3 Bb5+) without 3...Bd7.} Ngf6 {[%emt 0:00:03]} 7. O-O {[%emt 0:00:02]} e5 {[%emt 0:00:03]} 8. Qe3 {[%emt 0:00:01] The position is equal.} Nc5 {[%emt 0:00:01]} 9. Nc3 {[%emt 0:00:00]} Be7 {[%emt 0:00:02]} 10. a4 {[%emt 0:00:09]} O-O {[%emt 0:00:03] [#]} 11. Nd2 $146 {[%emt 0:00:19]} (11. b4 $5 {[%cal Rb4c5]} Ne6 12. g3 $11) ({Predecessor:} 11. b4 Ne6 12. g3 h6 13. a5 Bd7 14. Bb2 Rc8 15. Rac1 {½-½ Plenca,J (2469)-Brkic,A (2573) Zagreb Hulak Memorial op 2nd 2017 (6)}) 11... Ng4 {[%emt 0:00:29]} 12. Bxg4 {[%emt 0:01:05]} Bxg4 {[%emt 0:00:01]} 13. h3 {[%emt 0:00:21]} Be6 {[%emt 0:00:19]} 14. b3 {[%emt 0:00:06]} Rc8 {[%emt 0:00:04]} 15. Bb2 {[%emt 0:00:11]} f5 {[%emt 0:00:21][%cal Bf7f5,Bf5f4][%mdl 32]} 16. Rfd1 {[%emt 0:00:05]} f4 {[%emt 0:00:36]} 17. Qe2 {[%emt 0:00:05]} Qe8 {[%emt 0:00:06]} 18. Nd5 {[%emt 0:00:10]} Bxd5 {[%emt 0:00:16]} 19. exd5 {[%emt 0:00:01]} Qg6 {[%emt 0:00:01]} 20. b4 $2 {[%emt 0:00:18] [#] Now White is beyond hope.} (20. Qg4 $1 $11 {and White stays safe.}) 20... Nxa4 $1 $19 {[%emt 0:00:30][%mdl 512]} 21. Rxa4 {[%emt 0:00:14] Qd3 would be deadly.} Rxc2 {[%emt 0:00:01] And now ...f3 would win.} 22. Bc1 {[%emt 0:00:29] [#]} f3 $1 $40 {[%emt 0:00:15][%csl Gf3][%cal Rg6g2][%mdl 640] Black has strong attack.} 23. Qf1 {[%emt 0:00:00] [#]} Bh4 $1 {[%emt 0:00:53]} ({Worse is} 23... fxg2 24. Qxg2 Qh6 25. Qg4 $15) 24. g3 $2 {[%emt 0:00:23]} (24. Kh1 fxg2+ 25. Qxg2 Qxg2+ 26. Kxg2 Bxf2 27. Nf1) 24... Bxg3 $1 {[%emt 0:00:39]} 25. fxg3 {[%emt 0:00:01]} (25. Kh1 $142 Bf4 26. Ra3) 25... e4 {[%emt 0:00:03]} (25... Qxg3+ $142 26. Kh1 Rf6) 26. Ra3 {[%emt 0:00:25]} ({Don't go for} 26. g4 $2 e3 27. Ra3 e2 28. Rxf3 exf1=Q+) (26. Nxe4 $142 Qxe4 27. Bd2) 26... Qxg3+ {[%emt 0:00:18]} 27. Kh1 {[%emt 0:00:00]} Rfc8 $2 {[%emt 0:00:00]} (27... Rf6 {( -> ...Rh6)} 28. Qg1 Qxh3+ 29. Qh2 Qc8) 28. Qg1 $2 {[%emt 0:00:01] [#]} (28. Nxf3 exf3 29. Bd2) 28... Rxc1 $1 {[%emt 0:00:21][%mdl 576] Back Rank. Black is clearly winning.} 29. Ra1 {[%emt 0:00:19]} Qxh3+ {[%emt 0:00:05]} 30. Qh2 {[%emt 0:00:00]} Qxh2+ {[%emt 0:00:02]} 31. Kxh2 Rxa1 {[%emt 0:00:00]} 32. Rxa1 {[%emt 0:00:01]} Rc2 {[%emt 0:00:01] Ingenious play by Giri!   Weighted Error Value: White=0.94/Black=0.41} 0-1

[Event "Superbet Blitz Poland 2023"]
[Site "Warsaw"]
[Date "2023.05.24"]
[Round "4"]
[White "Vachier-Lagrave, Maxime"]
[Black "Aronian, Levon"]
[Result "1/2-1/2"]
[ECO "C67"]
[WhiteElo "2742"]
[BlackElo "2745"]
[Annotator "TA"]
[PlyCount "76"]
[EventDate "2023.05.24"]
[EventType "tourn"]
[EventCountry "POL"]
[SourceTitle "playchess.com"]
[Source "ChessBase"]
[SourceQuality "1"]
[TimeControl "300+2"]

{[%evp 16,76,21,17,21,13,17,25,20,0,13,19,18,8,8,8,0,0,12,0,2,-4,0,0,0,-7,0,-26,-1,-25,-15,-12,-10,-8,-11,-12,-10,-22,-10,-131,-6,-34,-23,-34,-16,-19,0,-5,0,0,0,-4,0,0,0,-10,0,0,0,-6,0,0,0]} 1. e4 {[%emt 0:00:01]} e5 {[%emt 0:00:01]} 2. Nf3 {[%emt 0:00:02]} Nc6 {[%emt 0:00:02]} 3. Bb5 {[%emt 0:00:01]} Nf6 {[%emt 0:00:01]} 4. O-O {[%emt 0:00:02][%cal Bh1f1,Bf1e1,Be1e5,Be5e2][%mdl 32]} Nxe4 {[%emt 0:00:02]} 5. Re1 {[%emt 0:00:02]} Nd6 {[%emt 0:00:02]} 6. Nxe5 {[%emt 0:00:01]} Be7 {[%emt 0:00:02]} 7. Bf1 {[%emt 0:00:02]} Nxe5 {[%emt 0:00:03]} 8. Rxe5 {[%emt 0:00:01]} O-O {[%emt 0:00:03]} 9. d4 {[%emt 0:00:02]} Bf6 {[%emt 0:00:06] C67: Ruy Lopez: Berlin Defence: 4 0-0 Nxe4.} 10. Re2 {[%emt 0:00:01]} b6 {[%emt 0:00:05]} 11. Re1 {[%emt 0:00:01]} Bb7 {[%emt 0:00:09] White has an edge.} 12. Bf4 {[%emt 0:00:02]} Nf5 {[%emt 0:00:09]} 13. c3 $1 {[%emt 0:00:06]} Re8 {[%emt 0:00:03] [#]} 14. Rxe8+ $146 {[%emt 0:00:25]} ({Predecessor:} 14. Nd2 Rxe1 15. Qxe1 g5 16. Bg3 Nxg3 17. hxg3 c5 18. Ne4 cxd4 19. Rd1 Bxe4 20. Qxe4 {½-½ Kryvoruchko,Y (2686)-Aronian,L (2782) FIDE Grand Swiss 2021 (11)}) 14... Qxe8 {[%emt 0:00:01]} 15. Nd2 {[%emt 0:00:01]} d6 {[%emt 0:00:21]} 16. Qc2 {[%emt 0:01:04]} g6 {[%emt 0:00:02]} 17. Bd3 {[%emt 0:00:07]} Ng7 {[%emt 0:00:09]} ({But not} 17... Qc6 18. Be4 d5 19. Bxf5 gxf5 20. Qxf5 $16) 18. Ne4 {[%emt 0:00:05]} Be7 {[%emt 0:00:02]} 19. Re1 {[%emt 0:00:04][%cal Oe4f6] Strongly threatening Nf6+!} Qd7 {[%emt 0:00:02]} 20. h3 {[%emt 0:00:16]} Re8 {[%emt 0:00:15]} 21. Bd2 {[%emt 0:00:17]} Bd8 {[%emt 0:00:25]} (21... Bh4 {with more complications.} 22. Re2 c5 23. dxc5 bxc5 24. a4 Ne6) 22. Ng3 {[%emt 0:00:12]} Rxe1+ {[%emt 0:00:11]} 23. Bxe1 {[%emt 0:00:01]} c5 {[%emt 0:00:12]} 24. dxc5 {[%emt 0:00:30]} dxc5 {[%emt 0:00:02]} 25. Bd2 {[%emt 0:00:04]} Ne6 {[%emt 0:00:10]} 26. Be3 {[%emt 0:00:08]} Bg5 {[%emt 0:00:15]} 27. Qd2 {[%emt 0:00:25]} (27. Bxg5 $11 Nxg5 28. Qe2) 27... h6 {[%emt 0:01:24]} ({Black should play} 27... Bxe3 $17 28. Qxe3 Bxg2 29. Kxg2 Qxd3) 28. Be4 {[%emt 0:00:13]} Qxd2 {[%emt 0:00:17]} 29. Bxd2 {[%emt 0:00:01]} Bxd2 {[%emt 0:00:09]} (29... Ba6 $5 {[%cal Rg5d2]} 30. Bxg5 hxg5 $11) 30. Bxb7 $15 {[%emt 0:00:02][%mdl 4096] Endgame KBN-KBN. The position is equal.} Bc1 {[%emt 0:00:00]} 31. b3 {[%emt 0:00:01]} Kf8 {[%emt 0:00:02]} 32. Ne2 {[%emt 0:00:04]} Bd2 {[%emt 0:00:11]} 33. g3 {[%emt 0:00:14]} b5 {[%emt 0:00:15]} 34. Kg2 {[%emt 0:00:09]} Ke7 {[%emt 0:00:04]} 35. Kf3 {[%emt 0:00:10]} Ng5+ {[%emt 0:00:01]} 36. Kg2 {[%emt 0:00:01]} Ne6 {[%emt 0:00:01]} 37. Kf3 {[%emt 0:00:00]} Ng5+ {[%emt 0:00:00]} 38. Kg2 {[%emt 0:00:01]} Ne6 {[%emt 0:00:01] Weighted Error Value: White=0.13 (very precise) /Black=0.12 (very precise)} 1/2-1/2

[Event "Superbet Blitz Poland 2023"]
[Site "Warsaw"]
[Date "2023.05.24"]
[Round "4"]
[White "Deac, Bogdan-Daniel"]
[Black "Rapport, Richard"]
[Result "1-0"]
[ECO "A48"]
[WhiteElo "2700"]
[BlackElo "2745"]
[Annotator "TA"]
[PlyCount "89"]
[EventDate "2023.05.24"]
[EventType "tourn"]
[EventCountry "POL"]
[SourceTitle "playchess.com"]
[Source "ChessBase"]
[SourceQuality "1"]
[TimeControl "300+2"]

{[%evp 9,89,21,27,24,22,10,23,-6,14,14,12,10,22,12,20,22,49,42,115,125,114,99,135,86,67,20,150,149,177,182,174,176,177,155,170,140,122,110,121,121,108,119,114,106,121,110,119,82,82,75,71,59,508,507,420,40,44,51,159,0,54,71,277,242,392,385,705,702,707,708,640,678,637,630,811,746,2044,1849,1539,1315,29981,29982]} 1. d4 {[%emt 0:00:02]} Nf6 {[%emt 0:00:01]} 2. Nf3 {[%emt 0:00:01]} c5 {[%emt 0:00:06]} 3. e3 {[%emt 0:00:04]} g6 {[%emt 0:00:03]} 4. Be2 {[%emt 0:00:08]} Bg7 {[%emt 0:00:02]} 5. O-O {[%emt 0:00:02]} b6 {[%emt 0:00:06]} 6. d5 {[%emt 0:00:14] A48: 1 d4 Nf6 2 Nf3 g6: Torre, London and Colle Systems.} O-O {[%emt 0:00:04]} 7. Nc3 {[%emt 0:00:08]} d6 {[%emt 0:00:05] [#]} 8. h3 $146 {[%emt 0:00:17] White has an edge.} ({Predecessor:} 8. e4 Bg4 9. h3 Bxf3 10. Bxf3 Na6 11. a4 Nc7 12. Re1 Nd7 13. Bg5 a6 14. Be2 {1-0 Matlakov,M (2674)-Rapport,R (2763) Wch Blitz Warsaw 2021 (17)}) 8... Na6 {[%emt 0:00:05]} 9. e4 {[%emt 0:00:01]} Nc7 {[%emt 0:00:04][%cal Ob6b5]} 10. Re1 {[%emt 0:00:20]} a6 {[%emt 0:00:09]} 11. a4 {[%emt 0:00:10]} Bb7 {[%emt 0:00:05]} 12. Bf4 {[%emt 0:00:14]} Re8 {[%emt 0:00:04]} 13. Bc4 {[%emt 0:00:50]} e5 {[%emt 0:00:33]} (13... Nh5 $14 14. Bg5 h6) 14. dxe6 $16 {[%emt 0:00:33]} Nxe6 {[%emt 0:00:02]} 15. Qxd6 {[%emt 0:00:24] White is much more active.} (15. Bxd6 {seems wilder.} Nd4 16. Bf4 Nxe4 17. Bxf7+ Kxf7 18. Nxe4 Kg8 19. Nfd2) 15... Nd4 {[%emt 0:01:10]} 16. Nxd4 {[%emt 0:01:17]} (16. Ng5 $142 Rf8 17. Rad1) 16... cxd4 {[%emt 0:00:23]} 17. Qxd8 {[%emt 0:00:08]} (17. Nd5 $14) 17... Raxd8 {[%emt 0:00:02] [#]} (17... Rexd8 $11 {keeps the balance.} 18. Nd5 Nxd5 19. exd5 (19. Bxd5 Bxd5 20. exd5 Rxd5 $11) 19... Bxd5) 18. Nd5 $1 {[%emt 0:00:01][%mdl 512]} Nxe4 {[%emt 0:01:02]} (18... Nxd5 19. exd5) 19. Nxb6 {[%emt 0:00:14]} d3 {[%emt 0:00:33]} 20. cxd3 {[%emt 0:00:17]} ({Resist} 20. Bxd3 $6 Bxb2 21. Rab1 Bd4 $11) 20... Nxf2 {[%emt 0:00:01]} 21. Kxf2 {[%emt 0:00:09]} Bd4+ {[%emt 0:00:01]} 22. Kg3 {[%emt 0:00:07]} Bxb6 {[%emt 0:00:02]} 23. b4 {[%emt 0:00:01]} Bd4 {[%emt 0:00:08]} 24. Rac1 {[%emt 0:00:03]} Kg7 {[%emt 0:00:04]} 25. b5 {[%emt 0:00:02]} axb5 {[%emt 0:00:12]} 26. Bxb5 {[%emt 0:00:01]} Rxe1 {[%emt 0:00:06]} 27. Rxe1 {[%emt 0:00:01]} Kf6 {[%emt 0:00:10]} 28. Bc4 {[%emt 0:00:04]} g5 {[%emt 0:00:08]} 29. Bd2 {[%emt 0:00:03]} Kg6 {[%emt 0:00:15]} 30. a5 {[%emt 0:00:02] a6 is the strong threat.} f5 $2 {[%emt 0:00:03][%mdl 8192]} (30... Ba8 $14) 31. Re6+ $18 {[%emt 0:00:02]} Kh5 {[%emt 0:00:02]} 32. Re7 $2 {[%emt 0:00:01]} (32. Bb5 $18) 32... f4+ $14 {[%emt 0:00:02]} 33. Kh2 {[%emt 0:00:01]} Ba8 {[%emt 0:00:08] [#]} (33... Bd5 $14) 34. Rxh7+ {[%emt 0:00:02]} (34. g3 $1 $16 {[%cal Rg3f4]}) 34... Kg6 {[%emt 0:00:00]} 35. Re7 {[%emt 0:00:02] Black must now prevent Bf7+.} Bf2 $2 {[%emt 0:00:02]} (35... Rb8 $16) 36. Be1 {[%emt 0:00:02]} Bc5 {[%emt 0:00:03]} (36... Bd4 $142 37. h4 Bd5 38. Bxd5 Rxd5) 37. Re6+ $18 {[%emt 0:00:02]} Kf5 $2 {[%emt 0:00:03]} (37... Kh7 38. Re5 Bd4 39. Rxg5 Rb8) 38. Bc3 {[%emt 0:00:03][%csl Gc3][%cal Re6f6]} Bd4 {[%emt 0:00:05] Inhibits Rf6+.} 39. Bxd4 {[%emt 0:00:03]} Rxd4 {[%emt 0:00:00][%mdl 4096] Endgame KRB-KRB} 40. Re8 {[%emt 0:00:01]} Bc6 {[%emt 0:00:04]} 41. Rc8 {[%emt 0:00:01]} Rd6 {[%emt 0:00:03]} 42. a6 {[%emt 0:00:01][%cal Ba5a6,Ba6a7][%mdl 32]} f3 {[%emt 0:00:02]} 43. gxf3 {[%emt 0:00:02][%cal Oc8c6] Hoping for Rxc6!} Kf4 {[%emt 0:00:01]} 44. a7 {[%emt 0:00:02][%cal Oc8c6] Rxc6! would kill now.} Bxf3 {[%emt 0:00:02]} 45. Rf8+ {[%emt 0:00:01][%mdl 64] Skewer, Deflection.   Weighted Error Value: White=0.29 (precise) /Black=0.72} 1-0